{"text_format":"1","workbook":"xlsx","n_sheets":5,"sheets":["matarka_old","matarka","nyers_old","nyers","Munka1"],"not_rendered":{"charts":0,"images":0,"macros":1,"external_links":0,"defined_names":0,"comments":0,"pivot_tables":0},"unopened":[],"bounds":{"document_bytes":16777216,"sheet_cells":100000,"rows_first":2000,"rows_last":500,"rows_between":2000,"halvings":0,"cell_chars":16384,"cell_head_chars":4096},"cells_cut":0,"cells_raw":0,"read":"whole","date_system":"1900"}

{"sheet":"matarka_old","index":0,"n_rows":30,"n_cols":2,"rows_kept":30,"cut":false,"hidden":false,"merged":[]}
[null,"***"]
["Magyar Internetes Agrárinformatikai Újság (MIAÚ),2018,21,239"]
[{"$f":"nyers_old!F1","v":"miau239"},"Pitlik László-Pitlik Marcell-Pitlik Mátyás-Pitlik László, ifj. :Közlekedési döntések racionalitásának modellezése   xx  http://miau.gau.hu/miau/239/kvant_behavior_patterns_v1.docx"]
[{"$f":"nyers_old!F3","v":"miau239"},"Pitlik László-Pitlik Marcell:Konzisztencia-orientált modell-hibridizáció látszólag triviális műszaki jelenségek kezelésére  xx  http://miau.gau.hu/miau/239/konzisztencia_alapu_hibridizacio_v1.docx"]
[{"$f":"nyers_old!F5","v":"miau239"},{"$f":"nyers_old!G5&nyers_old!H5&nyers_old!I5&nyers_old!J5&nyers_old!K5","v":"Pitlik László:Konzisztencia-orientált előrejelzés és foresight a kortárs jövőkutatásban  xx  http://miau.gau.hu/miau/239/2Pitlik_Laszlo_konzisztencia_full.docx"}]
[{"$f":"nyers_old!F7","v":"miau239"},{"$f":"nyers_old!G7&nyers_old!H7&nyers_old!I7&nyers_old!J7&nyers_old!K7","v":"Pitlik László:Kivonatok: Konzisztencia-orientált előrejelzés és foresight a kortárs jövőkutatásban  xx  http://miau.gau.hu/miau/239/2Pitlik_Laszlo_konzisztencia.docx"}]
[{"$f":"nyers_old!F9","v":"miau239"},"Pitlik László-Pitlik László, ifj.-Pitlik Mátyás-Pitlik Marcell-Gyimesi Áron:Development of smart traffic evaluation- and influence-modules\u000bbased on non-declarative rules of artificial intelligence  xx  http://miau.gau.hu/miau/239/kosice.pptx"]
["Magyar Internetes Agrárinformatikai Újság (MIAÚ),2018,21,240"]
[{"$f":"nyers_old!F11","v":"miau240"},"Pitlik László-Pitlik Marcell-Pitlik Mátyás-Pitlik László, ifj. :Lámpa-terhelésindex számítása lámpaprogram-sorrendek becslése érdekében  xx  http://miau.gau.hu/miau/240/lampaprogramok_versenye.docx"]
[{"$f":"nyers_old!F13","v":"miau240"},"Pitlik László-Pitlik Marcell-Pitlik Mátyás-Pitlik László, ifj. :Döntéstámogatási operatív rétegek a közlekedés-optimalizálásban I. rész  xx  http://miau.gau.hu/miau/240/traffic_layers_1.docx"]
[{"$f":"nyers_old!F15","v":"miau240"},"Pitlik László-Pitlik Marcell-Pitlik Mátyás-Pitlik László, ifj. :Közlekedési lámpák ki/be-kapcsolásának mesterséges intelligencia-alapú vezérlése  xx  http://miau.gau.hu/miau/240/lampa_ki_be.docx"]
[{"$f":"nyers_old!F17","v":"miau240"},"Pitlik László-Pitlik Marcell-Pitlik Mátyás-Pitlik László, ifj. :Játékosított keretrendszerben történő tanulás log-adatainak elemzése  xx  http://miau.gau.hu/miau/240/2dm_phase2.docx"]
[{"$f":"nyers_old!F19","v":"miau240"},{"$f":"nyers_old!G19&nyers_old!H19&nyers_old!I19&nyers_old!J19&nyers_old!K19","v":"Barta Gergő:Szakirodalmi alapozás és kutatási terv, avagy egy komplex vizsga dokumentumai  xx  http://miau.gau.hu/miau/240/komplex/"}]
[{"$f":"nyers_old!F21","v":"miau240"},{"$f":"nyers_old!G21&nyers_old!H21&nyers_old!I21&nyers_old!J21&nyers_old!K21","v":"Czúni Dániel:A LEADER-jelenség \"hatása\", avagy kezdeti lépések az \"Innovátorrá\" válás útján  xx  http://miau.gau.hu/miau/240/100.docx"}]
[{"$f":"nyers_old!F23","v":"miau240"},"Pitlik László-Pitlik Marcell :A minden másként egyforma elv hatása az összefüggéskeresésre és az anomália-feltárásra   xx  http://miau.gau.hu/miau/240/x2y2r2.xlsx"]
["Magyar Internetes Agrárinformatikai Újság (MIAÚ),2018,21,238"]
[{"$f":"nyers_old!F25","v":"miau238"},"Pitlik László-Pitlik László, ifj.-Pitlik Marcell:Rosling-animációk didaktikai potenciálja a tanításban/tanulásban  xx  http://miau.gau.hu/miau/238/mmo2018_rosling.pptx"]
[{"$f":"nyers_old!F27","v":"miau238"},"Pitlik László-Pitlik László, ifj.-Pitlik Mátyás:Játékosított keretrendszerben történő tanulásból nyert log-adatokra alapozó profilírozás  xx  http://miau.gau.hu/miau/238/mmo2018_2dm.pptx"]
[{"$f":"nyers_old!F29","v":"miau238"},"Pitlik László-Pitlik László, ifj.-Pitlik Mátyás:Játékosított keretrendszerben történő tanulásból nyert log-adatokra alapozó profilírozás  xx  http://miau.gau.hu/miau/238/mmo2018_2dm_vagott.mp3"]
[{"$f":"nyers_old!F31","v":"miau238"},"Pitlik László-Pitlik László, ifj.-Pitlik Mátyás-Pitlik Marcell-Gyimesi Áron:Development of smart traffic evaluation- and influence-modules based on non-declarative rules of artificial intelligence  xx  http://miau.gau.hu/miau/238/Manuscript_Template_2017_myx.docx"]
[{"$f":"nyers_old!F33","v":"miau238"},{"$f":"nyers_old!G33&nyers_old!H33&nyers_old!I33&nyers_old!J33&nyers_old!K33","v":"Pitlik Mátyás:2DM-keretrendszer  xx  http://miau.gau.hu/miau/238/2dm"}]
[{"$f":"nyers_old!F35","v":"miau238"},"Pitlik László-Pitlik László, ifj.-Pitlik Marcell:Rosling-animációk didaktikai potenciálja a tanításban/tanulásban  xx  http://miau.gau.hu/miau/238/rosling_didactics.doc"]
[{"$f":"nyers_old!F37","v":"miau238"},"Pitlik László-Pitlik László, ifj.-Pitlik Marcell:Rosling-animációk didaktikai potenciálja a tanításban/tanulásban  xx  http://miau.gau.hu/miau/238/rosling_didactics_full_v1.doc"]
[{"$f":"nyers_old!F39","v":"miau238"},"Pitlik László-Pitlik László, ifj.-Pitlik Mátyás:Játékosított keretrendszerben történő tanulásból nyert log-adatokra alapozó profilírozás  xx  http://miau.gau.hu/miau/238/log_profile_full_v2.doc"]
[{"$f":"nyers_old!F41","v":"miau238"},"Pitlik László-Pitlik László, ifj.-Pitlik Mátyás:Játékosított keretrendszerben történő tanulásból nyert log-adatokra alapozó profilírozás  xx  http://miau.gau.hu/miau/238/log_profile.doc"]
[{"$f":"nyers_old!F43","v":"miau238"},"Pitlik László-Szani Ferenc-Mihályi Gabriella:A tacit tudás tudásmérnöki kezelésének lehetőségei a mesterséges intelligencia-alapú fogalomalkotás keretei között  xx  http://miau.gau.hu/miau/238/tacit_v1.pptx"]
[{"$f":"nyers_old!F45","v":"miau238"},"Pitlik László-Szani Ferenc-Mihályi Gabriella:A tacit tudás tudásmérnöki kezelésének lehetőségei a mesterséges intelligencia-alapú fogalomalkotás keretei között  xx  http://miau.gau.hu/miau/238/tacit_v1.docx"]
[{"$f":"nyers_old!F47","v":"miau238"},{"$f":"nyers_old!G47&nyers_old!H47&nyers_old!I47&nyers_old!J47&nyers_old!K47","v":"Pitlik László:A kiemelt figyelmet elváró jelenségek feltárásának modellezése  xx  http://miau.gau.hu/miau/238/exploring_critical_attributes_for_risk_management_v1.docx"}]
[null,"***"]
[null,{"$f":"nyers_old!G66&nyers_old!H66&nyers_old!I66&nyers_old!J66&nyers_old!K66","v":""}]

{"sheet":"matarka","index":1,"n_rows":20,"n_cols":2,"rows_kept":20,"cut":false,"hidden":false,"merged":[]}
[null,"***"]
["Magyar Internetes Agrárinformatikai Újság (MIAÚ),2019,22,253"]
[{"$f":"nyers!F1","v":"miau253"},"Pitlik Mátyás-Pitlik László-Pitlik Marcell:Érme-választás többrétegű optimalizálás keretében  xx  https://miau.my-x.hu/miau/253/erem_befektetes_coco.xlsx"]
[{"$f":"nyers!F3","v":"miau253"},{"$f":"nyers!G3&nyers!H3&nyers!I3&nyers!J3&nyers!K3","v":"Pitlik Mátyás:A 2DM-játék tervezési (vak) nézete  xx  https://miau.my-x.hu/miau/253/2dm/"}]
[{"$f":"nyers!F5","v":"miau253"},{"$f":"nyers!G5&nyers!H5&nyers!I5&nyers!J5&nyers!K5","v":"Pitlik László:MIAÚ aktivitások nyomai hazai PhD-folyamatokban  xx  https://miau.my-x.hu/mediawiki/index.php/MIAU_aktivitasok_PhD_folyamatokban"}]
[{"$f":"nyers!F7","v":"miau253"},"Pitlik László-Pitlik Marcell-Pitlik László, ifj.-Pitlik Mátyás:Közlekedés- és környezetszimulátor működési helyességének tesztelése  xx  https://miau.my-x.hu/miau/253/traffic-simulations.docx"]
["Magyar Internetes Agrárinformatikai Újság (MIAÚ),2019,22,254"]
[{"$f":"nyers!F9","v":"miau254"},"Pitlik Mátyás-Pitlik László-Pitlik Marcell-Pitlik László, ifj.:Valós kémia-feladat 2DM keretrendszerbe adaptálva  xx  https://miau.my-x.hu/miau/254/2dm_kemia_demo/"]
[{"$f":"nyers!F11","v":"miau254"},"Pitlik László-Pitlik Marcell-Pitlik Mátyás:Kimutatásvarázslás-láncok és klasszikus programkódok összevetése  xx  https://miau.my-x.hu/miau/254/sql-pivot-olap_vs_macro.xlsx"]
[{"$f":"nyers!F13","v":"miau254"},{"$f":"nyers!G13&nyers!H13&nyers!I13&nyers!J13&nyers!K13","v":"Pitlik László:Hasonlóságelemzés optimum hatásainak kiváltása COCO-STD-modellekkel  xx  https://miau.my-x.hu/miau/254/coco_optimum_hatasok_std_modellekkel.xlsx"}]
[{"$f":"nyers!F15","v":"miau254"},"Pitlik László-Pitlik Marcell-Pitlik Mátyás-Pitlik László, ifj.:Titkosírás haladóknak III.  xx  https://miau.my-x.hu/miau/254/cipher3.docx"]
[{"$f":"nyers!F17","v":"miau254"},"Pitlik László-Pitlik Marcell-Pitlik Mátyás-Pitlik László, ifj.:Titkosírás haladóknak II.  xx  https://miau.my-x.hu/miau/254/cipher2.docx"]
[{"$f":"nyers!F19","v":"miau254"},"Pitlik László-Pitlik Marcell-Pitlik Mátyás-Pitlik László, ifj.:Titkosírás haladóknak I.  xx  https://miau.my-x.hu/miau/254/cipher1.docx"]
[{"$f":"nyers!F21","v":"miau254"},"Pitlik László-Pitlik Marcell:SUDOKU-algoritmusok összevetése, avagy SOLVER vs. egyedi kód  xx  https://miau.my-x.hu/miau/254/SUDOKU_SOLVER_CUSTOMIZED_SOURCE_CODE.docx"]
["Magyar Internetes Agrárinformatikai Újság (MIAÚ),2019,22,255"]
[{"$f":"nyers!F23","v":"miau255"},"Pitlik Mátyás-Pitlik Marcell-Pitlik László:Hasonlóságelemzés java-script-alapon  xx  https://miau.my-x.hu/miau/255/coco_js.docx"]
[{"$f":"nyers!F25","v":"miau255"},"Pitlik László-Pitlik Marcell:Hasonlóságelemzés macro-alapon  xx  https://miau.my-x.hu/miau/255/coco_macro.docx"]
[{"$f":"nyers!F27","v":"miau255"},"Pitlik László-Pitlik Marcell:Az Excel-macro tanítás/tanulás tapasztalatai  xx  https://miau.my-x.hu/miau/255/macro_tanulas_tanitas.docx"]
[{"$f":"nyers!F29","v":"miau255"},"Pitlik László-Pitlik Marcell:Típusproblémák Excel-alapú vállalati adatvagyonok kezelésekor  xx  https://miau.my-x.hu/miau/255/tipusproblemak_excel_alapu_adatkezelesben.docx"]
[null,"***"]

{"sheet":"nyers_old","index":2,"n_rows":61,"n_cols":15,"rows_kept":61,"cut":false,"hidden":false,"merged":[[0,3,1,3],[2,3,3,3],[4,3,5,3],[6,3,7,3],[8,3,9,3],[48,2,49,2],[12,3,13,3],[14,3,15,3],[16,3,17,3],[18,3,19,3],[58,3,59,3],[36,3,37,3],[38,3,39,3],[42,3,43,3],[44,3,45,3],[46,3,47,3],[48,3,49,3],[50,3,51,3],[52,3,53,3],[54,3,55,3],[56,3,57,3],[74,3,75,3],[60,3,61,3],[62,2,63,2],[62,3,63,3],[64,2,65,2],[64,3,65,3],[66,2,67,2],[66,3,67,3],[68,3,69,3],[70,3,71,3],[72,3,73,3],[86,3,87,3],[88,2,89,2],[88,3,89,3],[76,3,77,3],[78,3,79,3],[80,3,81,3],[82,2,83,2],[82,3,83,3],[84,3,85,3],[8,2,9,2],[30,2,31,2],[40,3,41,3],[34,3,35,3],[20,3,21,3],[22,3,23,3],[24,3,25,3],[26,3,27,3],[28,3,29,3],[30,3,31,3],[32,3,33,3],[10,3,11,3]]}
["miau239","Pitlik László, Pitlik Marcell, Pitlik Mátyás, Pitlik László, ifj. ","Közlekedési döntések racionalitásának modellezése ","(+)",null,{"$f":"A1","v":"miau239"},{"$f":"B1","v":"Pitlik László, Pitlik Marcell, Pitlik Mátyás, Pitlik László, ifj. "},":",{"$f":"M1","v":"Közlekedési döntések racionalitásának modellezése "},"  xx  ","http://miau.gau.hu/miau/239/kvant_behavior_patterns_v1.docx",null,{"$f":"C1","v":"Közlekedési döntések racionalitásának modellezése "},"Customer satisfaction survey \u0096 with consistence checks I.)"]
[null,"(MY-X team):","(Modelling rationality of decisions in case of traffic actions)"]
["miau239","Pitlik László, Pitlik Marcell","Konzisztencia-orientált modell-hibridizáció látszólag triviális műszaki jelenségek kezelésére","(+)",null,{"$f":"F1","v":"miau239"},{"$f":"B3","v":"Pitlik László, Pitlik Marcell"},":",{"$f":"C3","v":"Konzisztencia-orientált modell-hibridizáció látszólag triviális műszaki jelenségek kezelésére"},"  xx  ","http://miau.gau.hu/miau/239/konzisztencia_alapu_hibridizacio_v1.docx",null,{"$f":"C3","v":"Konzisztencia-orientált modell-hibridizáció látszólag triviális műszaki jelenségek kezelésére"}]
[null,"(MY-X team):","(Consistence-oriented hybridization of models in case of seemingly trivial technical phenomena)",null,null,null,null,null,null,null,null,null,null,"Solution of complex task based on logical steps)"]
["miau239","Pitlik László","Konzisztencia-orientált előrejelzés és foresight a kortárs jövőkutatásban","(+)",null,{"$f":"F3","v":"miau239"},{"$f":"B5","v":"Pitlik László"},":",{"$f":"C5","v":"Konzisztencia-orientált előrejelzés és foresight a kortárs jövőkutatásban"},"  xx  ","http://miau.gau.hu/miau/239/2Pitlik_Laszlo_konzisztencia_full.docx",null,{"$f":"C5","v":"Konzisztencia-orientált előrejelzés és foresight a kortárs jövőkutatásban"},")-függvénnyel, ill. grafikus keretben"]
[null,"(MY-X team):","Consistence-oriented forecasting and foresight in the contemporary future science",null,null,null,null,null,null,null,null,null,null,"Trend-function based on Solver, online service, LINEST",") and graphical frame)"]
["miau239","Pitlik László","Kivonatok: Konzisztencia-orientált előrejelzés és foresight a kortárs jövőkutatásban","(+)",null,{"$f":"F5","v":"miau239"},{"$f":"B7","v":"Pitlik László"},":",{"$f":"C7","v":"Kivonatok: Konzisztencia-orientált előrejelzés és foresight a kortárs jövőkutatásban"},"  xx  ","http://miau.gau.hu/miau/239/2Pitlik_Laszlo_konzisztencia.docx",null,{"$f":"C7","v":"Kivonatok: Konzisztencia-orientált előrejelzés és foresight a kortárs jövőkutatásban"}]
[null,"(MY-X team):","Consistence-oriented forecasting and foresight in the contemporary future science",null,null,null,null,null,null,null,null,null,null,"History and future of the KLM-model from point of view of the e-learning)"]
["miau239","Pitlik László, Pitlik László, ifj., Pitlik Mátyás, Pitlik Marcell, Gyimesi Áron","Development of smart traffic evaluation- and influence-modules\u000bbased on non-declarative rules of artificial intelligence","(+)",null,{"$f":"F7","v":"miau239"},{"$f":"B9","v":"Pitlik László, Pitlik László, ifj., Pitlik Mátyás, Pitlik Marcell, Gyimesi Áron"},":",{"$f":"C9","v":"Development of smart traffic evaluation- and influence-modules\u000bbased on non-declarative rules of artificial intelligence"},"  xx  ","http://miau.gau.hu/miau/239/kosice.pptx",null,{"$f":"C9","v":"Development of smart traffic evaluation- and influence-modules\u000bbased on non-declarative rules of artificial intelligence"},"avagy egy konzisztencia-vezérelt mesterséges intelligencia alapú robot szakértői vélemény)"]
[null,"(MY-X team):",null,null,null,null,null,null,null,null,null,null,null,"Robot-expertise 2050)"]
["miau240","Pitlik László, Pitlik Marcell, Pitlik Mátyás, Pitlik László, ifj. ","Lámpa-terhelésindex számítása lámpaprogram-sorrendek becslése érdekében","(+)",null,{"$f":"A11","v":"miau240"},{"$f":"B11","v":"Pitlik László, Pitlik Marcell, Pitlik Mátyás, Pitlik László, ifj. "},":",{"$f":"C11","v":"Lámpa-terhelésindex számítása lámpaprogram-sorrendek becslése érdekében"},"  xx  ","http://miau.gau.hu/miau/240/lampaprogramok_versenye.docx",null,{"$f":"C11","v":"Lámpa-terhelésindex számítása lámpaprogram-sorrendek becslése érdekében"}]
[null,"(MY-X team):","(Calculation of an exposure-index for traffic lights - concerning an ideal traffic-light-program)",null,null,null,null,null,null,null,null,null,null,"Project libraries, or minimal level of the knowledge management)"]
["miau240","Pitlik László, Pitlik Marcell, Pitlik Mátyás, Pitlik László, ifj. ","Döntéstámogatási operatív rétegek a közlekedés-optimalizálásban I. rész","(+)",null,{"$f":"F11","v":"miau240"},{"$f":"B13","v":"Pitlik László, Pitlik Marcell, Pitlik Mátyás, Pitlik László, ifj. "},":",{"$f":"C13","v":"Döntéstámogatási operatív rétegek a közlekedés-optimalizálásban I. rész"},"  xx  ","http://miau.gau.hu/miau/240/traffic_layers_1.docx",null,{"$f":"C13","v":"Döntéstámogatási operatív rétegek a közlekedés-optimalizálásban I. rész"}]
[null,"(MY-X team):","(Operative layers for decision support in the optimization of traffic \u0096 Part I.)",null,null,null,null,null,null,null,null,null,null,"Fine tuning of controlling system in content sharing/recommendation based on similarity analyses)"]
["miau240","Pitlik László, Pitlik Marcell, Pitlik Mátyás, Pitlik László, ifj. ","Közlekedési lámpák ki/be-kapcsolásának mesterséges intelligencia-alapú vezérlése","(+)",null,{"$f":"F13","v":"miau240"},{"$f":"B15","v":"Pitlik László, Pitlik Marcell, Pitlik Mátyás, Pitlik László, ifj. "},":",{"$f":"C15","v":"Közlekedési lámpák ki/be-kapcsolásának mesterséges intelligencia-alapú vezérlése"},"  xx  ","http://miau.gau.hu/miau/240/lampa_ki_be.docx",null,{"$f":"C15","v":"Közlekedési lámpák ki/be-kapcsolásának mesterséges intelligencia-alapú vezérlése"}]
[null,"(MY-X team):","(Control of traffic lights based on artificial intelligence)",null,null,null,null,null,null,null,null,null,null,"Worm holes in frame of similarity analyses based on LP-driven staircase functions)"]
["miau240","Pitlik László, Pitlik Marcell, Pitlik Mátyás, Pitlik László, ifj. ","Játékosított keretrendszerben történő tanulás log-adatainak elemzése","(+)",null,{"$f":"F15","v":"miau240"},{"$f":"B17","v":"Pitlik László, Pitlik Marcell, Pitlik Mátyás, Pitlik László, ifj. "},":",{"$f":"C17","v":"Játékosított keretrendszerben történő tanulás log-adatainak elemzése"},"  xx  ","http://miau.gau.hu/miau/240/2dm_phase2.docx",null,{"$f":"C17","v":"Játékosított keretrendszerben történő tanulás log-adatainak elemzése"}]
[null,"(MY-X team):","(Analyzing log-data about learning behavior of users, where data are coming from a gamification frame)",null,null,null,null,null,null,null,null,null,null,"Content recommendation system based on competence profiles of users)"]
["miau240","Barta Gergő","Szakirodalmi alapozás és kutatási terv, avagy egy komplex vizsga dokumentumai","(+)",null,{"$f":"A19","v":"miau240"},{"$f":"B19","v":"Barta Gergő"},":",{"$f":"C19","v":"Szakirodalmi alapozás és kutatási terv, avagy egy komplex vizsga dokumentumai"},"  xx  ","http://miau.gau.hu/miau/240/komplex/",null,{"$f":"C19","v":"Szakirodalmi alapozás és kutatási terv, avagy egy komplex vizsga dokumentumai"}]
[null,"(MY-X team):","(Analysing literature and plan of research as annexes of an complex exam)",null,null,null,null,null,null,null,null,null,null,"Alternative solutions based on makros in Excel)"]
["miau240","Czúni Dániel","A LEADER-jelenség \"hatása\", avagy kezdeti lépések az \"Innovátorrá\" válás útján","(+)",null,{"$f":"A21","v":"miau240"},{"$f":"B21","v":"Czúni Dániel"},":",{"$f":"C21","v":"A LEADER-jelenség \"hatása\", avagy kezdeti lépések az \"Innovátorrá\" válás útján"},"  xx  ","http://miau.gau.hu/miau/240/100.docx",null,{"$f":"C21","v":"A LEADER-jelenség \"hatása\", avagy kezdeti lépések az \"Innovátorrá\" válás útján"}]
[null,"(MY-X team):","(The impact of the LEADER-phenomenon, or first steps becoming an innovator)"]
["miau240","Pitlik László, Pitlik Marcell ","A minden másként egyforma elv hatása az összefüggéskeresésre és az anomália-feltárásra ","(+)",null,{"$f":"A23","v":"miau240"},{"$f":"B23","v":"Pitlik László, Pitlik Marcell "},":",{"$f":"C23","v":"A minden másként egyforma elv hatása az összefüggéskeresésre és az anomália-feltárásra "},"  xx  ","http://miau.gau.hu/miau/240/x2y2r2.xlsx",null,{"$f":"C23","v":"A minden másként egyforma elv hatása az összefüggéskeresésre és az anomália-feltárásra "}]
[null,"(MY-X team):","(Anti-discriminative modelling technique for exploration of anomalies and/or functions)",null,null,null,null,null,null,null,null,null,null,"Investigative librarianship: following the GOOGLE-MIAÚ axis)"]
["miau238","Pitlik László, Pitlik László, ifj., Pitlik Marcell","PPT: Rosling-animációk didaktikai potenciálja a tanításban/tanulásban","(+)",null,{"$f":"A25","v":"miau238"},{"$f":"B25","v":"Pitlik László, Pitlik László, ifj., Pitlik Marcell"},":",{"$f":"C25","v":"PPT: Rosling-animációk didaktikai potenciálja a tanításban/tanulásban"},"  xx  ","http://miau.gau.hu/miau/238/mmo2018_rosling.pptx",null,{"$f":"C25","v":"PPT: Rosling-animációk didaktikai potenciálja a tanításban/tanulásban"}]
[null,"(MY-X team):","(Potential of Rosling-animations in teaching and learning methodology)"]
["miau238","Pitlik László, Pitlik László, ifj., Pitlik Mátyás","PPT: Játékosított keretrendszerben történő tanulásból nyert log-adatokra alapozó profilírozás","(+)",null,{"$f":"A27","v":"miau238"},{"$f":"B27","v":"Pitlik László, Pitlik László, ifj., Pitlik Mátyás"},":",{"$f":"C27","v":"PPT: Játékosított keretrendszerben történő tanulásból nyert log-adatokra alapozó profilírozás"},"  xx  ","http://miau.gau.hu/miau/238/mmo2018_2dm.pptx",null,{"$f":"C27","v":"PPT: Játékosított keretrendszerben történő tanulásból nyert log-adatokra alapozó profilírozás"}]
[null,"(MY-X team):","(Profiling in frame of gamification-driven learning activities based on log-data)",null,null,null,null,null,null,null,null,null,null,"Analysis of the Moral-Machine-Tests based on manual preferences)"]
["miau238","Pitlik László, Pitlik László, ifj., Pitlik Mátyás","MP3: Játékosított keretrendszerben történő tanulásból nyert log-adatokra alapozó profilírozás","(+)",null,{"$f":"A29","v":"miau238"},{"$f":"B29","v":"Pitlik László, Pitlik László, ifj., Pitlik Mátyás"},":",{"$f":"C29","v":"MP3: Játékosított keretrendszerben történő tanulásból nyert log-adatokra alapozó profilírozás"},"  xx  ","http://miau.gau.hu/miau/238/mmo2018_2dm_vagott.mp3",null,{"$f":"C29","v":"MP3: Játékosított keretrendszerben történő tanulásból nyert log-adatokra alapozó profilírozás"}]
[null,"(MY-X team):","(Profiling in frame of gamification-driven learning activities based on log-data)",null,null,null,null,null,null,null,null,null,null,"Knowledge engineering on the field of tacit knowledge based on artificial intelligence-oriented term-creation processes)"]
["miau238","Pitlik László, Pitlik László, ifj., Pitlik Mátyás, Pitlik Marcell, Gyimesi Áron","Development of smart traffic evaluation- and influence-modules based on non-declarative rules of artificial intelligence","(+)",null,{"$f":"A31","v":"miau238"},{"$f":"B31","v":"Pitlik László, Pitlik László, ifj., Pitlik Mátyás, Pitlik Marcell, Gyimesi Áron"},":",{"$f":"C31","v":"Development of smart traffic evaluation- and influence-modules based on non-declarative rules of artificial intelligence"},"  xx  ","http://miau.gau.hu/miau/238/Manuscript_Template_2017_myx.docx",null,{"$f":"C31","v":"Development of smart traffic evaluation- and influence-modules based on non-declarative rules of artificial intelligence"}]
[null,"(MY-X team):",null,null,null,null,null,null,null,null,null,null,null,"Objective vs. Subjective weights in the similarity analysis)"]
["miau238","Pitlik Mátyás","2DM-keretrendszer","(+)",null,{"$f":"A33","v":"miau238"},{"$f":"B33","v":"Pitlik Mátyás"},":",{"$f":"C33","v":"2DM-keretrendszer"},"  xx  ","http://miau.gau.hu/miau/238/2dm",null,{"$f":"C33","v":"2DM-keretrendszer"}]
[null,"(MY-X team):","(2DM tool)",null,null,null,null,null,null,null,null,null,null,"Simple cellular automata based on Excel-makros)"]
["miau238","Pitlik László, Pitlik László, ifj., Pitlik Marcell","Rosling-animációk didaktikai potenciálja a tanításban/tanulásban","(+)",null,{"$f":"A35","v":"miau238"},{"$f":"B35","v":"Pitlik László, Pitlik László, ifj., Pitlik Marcell"},":",{"$f":"C35","v":"Rosling-animációk didaktikai potenciálja a tanításban/tanulásban"},"  xx  ","http://miau.gau.hu/miau/238/rosling_didactics.doc",null,{"$f":"C35","v":"Rosling-animációk didaktikai potenciálja a tanításban/tanulásban"},"Presentation in Osijek in frame of an ERASMUS STAFF MOBILITY ACTION)"]
[null,"(MY-X team):","(Potential of Rosling-animations in teaching and learning methodology)"]
["miau238","Pitlik László, Pitlik László, ifj., Pitlik Marcell","Rosling-animációk didaktikai potenciálja a tanításban/tanulásban","(+)",null,{"$f":"A37","v":"miau238"},{"$f":"B37","v":"Pitlik László, Pitlik László, ifj., Pitlik Marcell"},":",{"$f":"C37","v":"Rosling-animációk didaktikai potenciálja a tanításban/tanulásban"},"  xx  ","http://miau.gau.hu/miau/238/rosling_didactics_full_v1.doc",null,{"$f":"C37","v":"Rosling-animációk didaktikai potenciálja a tanításban/tanulásban"}]
[null,"(MY-X team):","(Potential of Rosling-animations in teaching and learning methodology)",null,null,null,null,null,null,null,null,null,null,"Multicultural aspects of WEBOMETRICS)"]
["miau238","Pitlik László, Pitlik László, ifj., Pitlik Mátyás","Játékosított keretrendszerben történő tanulásból nyert log-adatokra alapozó profilírozás","(+)",null,{"$f":"A39","v":"miau238"},{"$f":"B39","v":"Pitlik László, Pitlik László, ifj., Pitlik Mátyás"},":",{"$f":"C39","v":"Játékosított keretrendszerben történő tanulásból nyert log-adatokra alapozó profilírozás"},"  xx  ","http://miau.gau.hu/miau/238/log_profile_full_v2.doc",null,{"$f":"C39","v":"Játékosított keretrendszerben történő tanulásból nyert log-adatokra alapozó profilírozás"}]
[null,"(MY-X team):","(Profiling in frame of gamification-driven learning activities based on log-data)",null,null,null,null,null,null,null,null,null,null,"Maturity vs. university)"]
["miau238","Pitlik László, Pitlik László, ifj., Pitlik Mátyás","Játékosított keretrendszerben történő tanulásból nyert log-adatokra alapozó profilírozás","(+)",null,{"$f":"A41","v":"miau238"},{"$f":"B41","v":"Pitlik László, Pitlik László, ifj., Pitlik Mátyás"},":",{"$f":"C41","v":"Játékosított keretrendszerben történő tanulásból nyert log-adatokra alapozó profilírozás"},"  xx  ","http://miau.gau.hu/miau/238/log_profile.doc",null,{"$f":"C41","v":"Játékosított keretrendszerben történő tanulásból nyert log-adatokra alapozó profilírozás"}]
[null,"(MY-X team):","(Profiling in frame of gamification-driven learning activities based on log-data)",null,null,null,null,null,null,null,null,null,null,"Project library, knowledge store \u0096 or better than the bests before)"]
["miau238","Pitlik László, Szani Ferenc, Mihályi Gabriella","PPT: A tacit tudás tudásmérnöki kezelésének lehetőségei a mesterséges intelligencia-alapú fogalomalkotás keretei között","(+)",null,{"$f":"A43","v":"miau238"},{"$f":"B43","v":"Pitlik László, Szani Ferenc, Mihályi Gabriella"},":",{"$f":"C43","v":"PPT: A tacit tudás tudásmérnöki kezelésének lehetőségei a mesterséges intelligencia-alapú fogalomalkotás keretei között"},"  xx  ","http://miau.gau.hu/miau/238/tacit_v1.pptx",null,{"$f":"C43","v":"PPT: A tacit tudás tudásmérnöki kezelésének lehetőségei a mesterséges intelligencia-alapú fogalomalkotás keretei között"}]
[null,"(MY-X team):","(Knowledge engineering on the field of tacit knowledge based on artificial intelligence-oriented term-creation processes)"]
["miau238","Pitlik László, Szani Ferenc, Mihályi Gabriella","A tacit tudás tudásmérnöki kezelésének lehetőségei a mesterséges intelligencia-alapú fogalomalkotás keretei között","(+)",null,{"$f":"A45","v":"miau238"},{"$f":"B45","v":"Pitlik László, Szani Ferenc, Mihályi Gabriella"},":",{"$f":"C45","v":"A tacit tudás tudásmérnöki kezelésének lehetőségei a mesterséges intelligencia-alapú fogalomalkotás keretei között"},"  xx  ","http://miau.gau.hu/miau/238/tacit_v1.docx",null,{"$f":"C45","v":"A tacit tudás tudásmérnöki kezelésének lehetőségei a mesterséges intelligencia-alapú fogalomalkotás keretei között"}]
[null,"(MY-X team):","(Knowledge engineering on the field of tacit knowledge based on artificial intelligence-oriented term-creation processes)"]
["miau238","Pitlik László","A kiemelt figyelmet elváró jelenségek feltárásának modellezése","(+)",null,{"$f":"A47","v":"miau238"},{"$f":"B47","v":"Pitlik László"},":",{"$f":"C47","v":"A kiemelt figyelmet elváró jelenségek feltárásának modellezése"},"  xx  ","http://miau.gau.hu/miau/238/exploring_critical_attributes_for_risk_management_v1.docx",null,{"$f":"C47","v":"A kiemelt figyelmet elváró jelenségek feltárásának modellezése"}]
[null,"(MY-X team):","(Derivation of the next critical attribute in a complex risk management system)"]
["miau233",null,null,null,null,{"$f":"A49","v":"miau233"},{"$f":"B49","v":0},":",{"$f":"C49","v":0},"  xx  ","http://miau.gau.hu/miau/233/naiv-korrel.xlsx"]
[]
["miau233",null,null,null,null,{"$f":"A51","v":"miau233"},{"$f":"B51","v":0},":",{"$f":"C51","v":0},"  xx  ","http://miau.gau.hu/miau/233/cikk8_final.docx"]
[]
["miau233",null,null,null,null,{"$f":"A53","v":"miau233"},{"$f":"B53","v":0},":",{"$f":"C53","v":0},"  xx  ","http://miau.gau.hu/miau/233/apertus_debrecen_klm.docx"]
[]
["miau233",null,null,null,null,{"$f":"A55","v":"miau233"},{"$f":"B55","v":0},":",{"$f":"C55","v":0},"  xx  ","http://miau.gau.hu/miau/233/apertus_debrecen_vir.docx"]
[]
["miau233",null,null,null,null,{"$f":"A57","v":"miau233"},{"$f":"B57","v":0},":",{"$f":"C57","v":0},"  xx  ","http://miau.gau.hu/miau/233/apertus_debrecen_jo.docx"]
[]
["miau233",null,null,null,null,{"$f":"A59","v":"miau233"},{"$f":"B59","v":0},":",{"$f":"C59","v":0},"  xx  ","http://miau.gau.hu/miau/233/2500_3000.docx"]
[]
["miau233",null,null,null,null,{"$f":"A61","v":"miau233"},{"$f":"B61","v":0},":",{"$f":"C61","v":0},"  xx  ","http://miau.gau.hu/miau/233/kvant_monitoring_v5.docx"]

{"sheet":"nyers","index":3,"n_rows":89,"n_cols":13,"rows_kept":89,"cut":false,"hidden":false,"merged":[[88,3,89,3],[86,3,87,3],[76,1,77,1],[76,3,77,3],[78,1,79,1],[78,3,79,3],[80,3,81,3],[70,3,71,3],[72,3,73,3],[74,3,75,3],[82,3,83,3],[84,3,85,3],[64,2,65,2],[64,3,65,3],[66,2,67,2],[66,3,67,3],[68,2,69,2],[68,3,69,3],[58,2,59,2],[58,3,59,3],[60,2,61,2],[60,3,61,3],[62,2,63,2],[62,3,63,3],[52,2,53,2],[52,3,53,3],[54,2,55,2],[54,3,55,3],[56,2,57,2],[56,3,57,3],[46,2,47,2],[46,3,47,3],[48,2,49,2],[48,3,49,3],[50,2,51,2],[50,3,51,3],[40,2,41,2],[40,3,41,3],[42,2,43,2],[42,3,43,3],[44,2,45,2],[44,3,45,3],[32,2,33,2],[32,3,33,3],[34,3,35,3],[36,3,37,3],[38,3,39,3],[24,3,25,3],[26,3,27,3],[28,3,29,3],[30,2,31,2],[30,3,31,3],[14,3,15,3],[16,3,17,3],[18,3,19,3],[20,3,21,3],[22,3,23,3],[0,3,1,3],[2,3,3,3],[4,3,5,3],[12,3,13,3],[6,3,7,3],[8,3,9,3],[10,3,11,3]]}
["miau253","Pitlik Mátyás, Pitlik László, Pitlik Marcell","Érme-választás többrétegű optimalizálás keretében","(+)",null,{"$f":"A1","v":"miau253"},{"$f":"B1","v":"Pitlik Mátyás, Pitlik László, Pitlik Marcell"},":",{"$f":"M1","v":"Érme-választás többrétegű optimalizálás keretében"},"  xx  ","https://miau.my-x.hu/miau/253/erem_befektetes_coco.xlsx",null,{"$f":"C1","v":"Érme-választás többrétegű optimalizálás keretében"}]
[null,"(MY-X team):","(Numismatics and similarity analysis)"]
["miau253","Pitlik Mátyás","A 2DM-játék tervezési (vak) nézete","(+)",null,{"$f":"A3","v":"miau253"},{"$f":"B3","v":"Pitlik Mátyás"},":",{"$f":"M3","v":"A 2DM-játék tervezési (vak) nézete"},"  xx  ","https://miau.my-x.hu/miau/253/2dm/",null,{"$f":"C3","v":"A 2DM-játék tervezési (vak) nézete"}]
[null,"(MY-X team):","(Blind layer in the 2DM gamification frame)"]
["miau253","Pitlik László","MIAÚ aktivitások nyomai hazai PhD-folyamatokban","(+)",null,{"$f":"A5","v":"miau253"},{"$f":"B5","v":"Pitlik László"},":",{"$f":"M5","v":"MIAÚ aktivitások nyomai hazai PhD-folyamatokban"},"  xx  ","https://miau.my-x.hu/mediawiki/index.php/MIAU_aktivitasok_PhD_folyamatokban",null,{"$f":"C5","v":"MIAÚ aktivitások nyomai hazai PhD-folyamatokban"}]
[null,"(MY-X team):","(PhD-activities in Hungary with MIAU-references)"]
["miau253","Pitlik László, Pitlik Marcell, Pitlik László (jun), Pitlik Mátyás","Közlekedés- és környezetszimulátor működési helyességének tesztelése","(+)",null,{"$f":"A7","v":"miau253"},{"$f":"B7","v":"Pitlik László, Pitlik Marcell, Pitlik László (jun), Pitlik Mátyás"},":",{"$f":"M7","v":"Közlekedés- és környezetszimulátor működési helyességének tesztelése"},"  xx  ","https://miau.my-x.hu/miau/253/traffic-simulations.docx",null,{"$f":"C7","v":"Közlekedés- és környezetszimulátor működési helyességének tesztelése"}]
[null,"(MY-X team):","(Testing of robustness of a traffic/environment-simulator)"]
["miau254","Pitlik Mátyás, Pitlik László, Pitlik Marcell, Pitlik László (jun)","Valós kémia-feladat 2DM keretrendszerbe adaptálva","(+)",null,{"$f":"A9","v":"miau254"},{"$f":"B9","v":"Pitlik Mátyás, Pitlik László, Pitlik Marcell, Pitlik László (jun)"},":",{"$f":"M9","v":"Valós kémia-feladat 2DM keretrendszerbe adaptálva"},"  xx  ","https://miau.my-x.hu/miau/254/2dm_kemia_demo/",null,{"$f":"C9","v":"Valós kémia-feladat 2DM keretrendszerbe adaptálva"}]
[null,"(MY-X team):","(2DM-game about useful knowledge in chemistry)"]
["miau254","Pitlik László, Pitlik Marcell, Pitlik Mátyás","Kimutatásvarázslás-láncok és klasszikus programkódok összevetése","(+)",null,{"$f":"A11","v":"miau254"},{"$f":"B11","v":"Pitlik László, Pitlik Marcell, Pitlik Mátyás"},":",{"$f":"M11","v":"Kimutatásvarázslás-láncok és klasszikus programkódok összevetése"},"  xx  ","https://miau.my-x.hu/miau/254/sql-pivot-olap_vs_macro.xlsx",null,{"$f":"C11","v":"Kimutatásvarázslás-láncok és klasszikus programkódok összevetése"}]
[null,"(MY-X team):","(Comparing chained pivot-reports and classic sources codes)"]
["miau254","Pitlik László","Hasonlóságelemzés optimum hatásainak kiváltása COCO-STD-modellekkel","(+)",null,{"$f":"A13","v":"miau254"},{"$f":"B13","v":"Pitlik László"},":",{"$f":"M13","v":"Hasonlóságelemzés optimum hatásainak kiváltása COCO-STD-modellekkel"},"  xx  ","https://miau.my-x.hu/miau/254/coco_optimum_hatasok_std_modellekkel.xlsx",null,{"$f":"C13","v":"Hasonlóságelemzés optimum hatásainak kiváltása COCO-STD-modellekkel"}]
[null,"(MY-X team):","(Optimum effects generated in COCO-STD-modells based on similarity analyses)"]
["miau254","Pitlik László, Pitlik Marcell, Pitlik Mátyás, Pitlik László (jun)","Titkosírás haladóknak III.","(+)",null,{"$f":"A15","v":"miau254"},{"$f":"B15","v":"Pitlik László, Pitlik Marcell, Pitlik Mátyás, Pitlik László (jun)"},":",{"$f":"M15","v":"Titkosírás haladóknak III."},"  xx  ","https://miau.my-x.hu/miau/254/cipher3.docx",null,{"$f":"C15","v":"Titkosírás haladóknak III."}]
[null,"(MY-X team):","(Cipher - exercises for advanced users - Part III)"]
["miau254","Pitlik László, Pitlik Marcell, Pitlik Mátyás, Pitlik László (jun)","Titkosírás haladóknak II.","(+)",null,{"$f":"A17","v":"miau254"},{"$f":"B17","v":"Pitlik László, Pitlik Marcell, Pitlik Mátyás, Pitlik László (jun)"},":",{"$f":"M17","v":"Titkosírás haladóknak II."},"  xx  ","https://miau.my-x.hu/miau/254/cipher2.docx",null,{"$f":"C17","v":"Titkosírás haladóknak II."}]
[null,"(MY-X team):","(Cipher - exercises for advanced users - Part II)"]
["miau254","Pitlik László, Pitlik Marcell, Pitlik Mátyás, Pitlik László (jun)","Titkosírás haladóknak I.","(+)",null,{"$f":"A19","v":"miau254"},{"$f":"B19","v":"Pitlik László, Pitlik Marcell, Pitlik Mátyás, Pitlik László (jun)"},":",{"$f":"M19","v":"Titkosírás haladóknak I."},"  xx  ","https://miau.my-x.hu/miau/254/cipher1.docx",null,{"$f":"C19","v":"Titkosírás haladóknak I."}]
[null,"(MY-X team):","(Cipher - exercises for advanced users - Part I)"]
["miau254","Pitlik László, Pitlik Marcell","SUDOKU-algoritmusok összevetése, avagy SOLVER vs. egyedi kód","(+)",null,{"$f":"A21","v":"miau254"},{"$f":"B21","v":"Pitlik László, Pitlik Marcell"},":",{"$f":"M21","v":"SUDOKU-algoritmusok összevetése, avagy SOLVER vs. egyedi kód"},"  xx  ","https://miau.my-x.hu/miau/254/SUDOKU_SOLVER_CUSTOMIZED_SOURCE_CODE.docx",null,{"$f":"C21","v":"SUDOKU-algoritmusok összevetése, avagy SOLVER vs. egyedi kód"}]
[null,"(MY-X team):","(Comparing of SUDOKU-algorithms or SOLVER vs. customized source code)"]
["miau255","Pitlik Mátyás, Pitlik Marcell, Pitlik László","Hasonlóságelemzés java-script-alapon","(+)",null,{"$f":"A23","v":"miau255"},{"$f":"B23","v":"Pitlik Mátyás, Pitlik Marcell, Pitlik László"},":",{"$f":"M23","v":"Hasonlóságelemzés java-script-alapon"},"  xx  ","https://miau.my-x.hu/miau/255/coco_js.docx",null,{"$f":"C23","v":"Hasonlóságelemzés java-script-alapon"}]
[null,"(MY-X team):","(Similarity analyses based on java-script)"]
["miau255","Pitlik László, Pitlik Marcell","Hasonlóságelemzés macro-alapon","(+)",null,{"$f":"A25","v":"miau255"},{"$f":"B25","v":"Pitlik László, Pitlik Marcell"},":",{"$f":"M25","v":"Hasonlóságelemzés macro-alapon"},"  xx  ","https://miau.my-x.hu/miau/255/coco_macro.docx",null,{"$f":"C25","v":"Hasonlóságelemzés macro-alapon"}]
[null,"(MY-X team):","(Similarity analyses based on Excel-macros)"]
["miau255","Pitlik László, Pitlik Marcell","Az Excel-macro tanítás/tanulás tapasztalatai","(+)",null,{"$f":"A27","v":"miau255"},{"$f":"B27","v":"Pitlik László, Pitlik Marcell"},":",{"$f":"M27","v":"Az Excel-macro tanítás/tanulás tapasztalatai"},"  xx  ","https://miau.my-x.hu/miau/255/macro_tanulas_tanitas.docx",null,{"$f":"C27","v":"Az Excel-macro tanítás/tanulás tapasztalatai"}]
[null,"(MY-X team):","(Experiences of teaching/learning of Excel-macros)"]
["miau255","Pitlik László, Pitlik Marcell","Típusproblémák Excel-alapú vállalati adatvagyonok kezelésekor","(+)",null,{"$f":"A29","v":"miau255"},{"$f":"B29","v":"Pitlik László, Pitlik Marcell"},":",{"$f":"M29","v":"Típusproblémák Excel-alapú vállalati adatvagyonok kezelésekor"},"  xx  ","https://miau.my-x.hu/miau/255/tipusproblemak_excel_alapu_adatkezelesben.docx",null,{"$f":"C29","v":"Típusproblémák Excel-alapú vállalati adatvagyonok kezelésekor"}]
[null,"(MY-X team):","(Typical problems in Excel-based data asset management)"]
[null,null,null,null,null,{"$f":"A31","v":0},{"$f":"B31","v":0},":",{"$f":"M31","v":0},"  xx  ",null,null,{"$f":"C31","v":0}]
[]
[null,null,null,null,null,{"$f":"A33","v":0},{"$f":"B33","v":0},":",{"$f":"M33","v":0},"  xx  ",null,null,{"$f":"C33","v":0}]
[]
[null,null,null,null,null,{"$f":"A35","v":0},{"$f":"B35","v":0},":",{"$f":"M35","v":0},"  xx  ",null,null,{"$f":"C35","v":0}]
[]
[null,null,null,null,null,{"$f":"A37","v":0},{"$f":"B37","v":0},":",{"$f":"M37","v":0},"  xx  ",null,null,{"$f":"C37","v":0}]
[]
[null,null,null,null,null,{"$f":"A39","v":0},{"$f":"B39","v":0},":",{"$f":"M39","v":0},"  xx  ",null,null,{"$f":"C39","v":0}]
[]
[null,null,null,null,null,{"$f":"A41","v":0},{"$f":"B41","v":0},":",{"$f":"M41","v":0},"  xx  ",null,null,{"$f":"C41","v":0}]
[]
[null,null,null,null,null,{"$f":"A43","v":0},{"$f":"B43","v":0},":",{"$f":"M43","v":0},"  xx  ",null,null,{"$f":"C43","v":0}]
[]
[null,null,null,null,null,{"$f":"A45","v":0},{"$f":"B45","v":0},":",{"$f":"M45","v":0},"  xx  ",null,null,{"$f":"C45","v":0}]
[]
[null,null,null,null,null,{"$f":"A47","v":0},{"$f":"B47","v":0},":",{"$f":"M47","v":0},"  xx  ",null,null,{"$f":"C47","v":0}]
[]
[null,null,null,null,null,{"$f":"A49","v":0},{"$f":"B49","v":0},":",{"$f":"M49","v":0},"  xx  ",null,null,{"$f":"C49","v":0}]
[]
[null,null,null,null,null,{"$f":"A51","v":0},{"$f":"B51","v":0},":",{"$f":"M51","v":0},"  xx  ",null,null,{"$f":"C51","v":0}]
[]
[null,null,null,null,null,{"$f":"A53","v":0},{"$f":"B53","v":0},":",{"$f":"M53","v":0},"  xx  ",null,null,{"$f":"C53","v":0}]
[]
[null,null,null,null,null,{"$f":"A55","v":0},{"$f":"B55","v":0},":",{"$f":"M55","v":0},"  xx  ",null,null,{"$f":"C55","v":0}]
[]
[null,null,null,null,null,{"$f":"A57","v":0},{"$f":"B57","v":0},":",{"$f":"M57","v":0},"  xx  ",null,null,{"$f":"C57","v":0}]
[]
[null,null,null,null,null,{"$f":"A59","v":0},{"$f":"B59","v":0},":",{"$f":"M59","v":0},"  xx  ",null,null,{"$f":"C59","v":0}]
[]
[null,null,null,null,null,{"$f":"A61","v":0},{"$f":"B61","v":0},":",{"$f":"M61","v":0},"  xx  ",null,null,{"$f":"C61","v":0}]
[]
[null,null,null,null,null,{"$f":"A63","v":0},{"$f":"B63","v":0},":",{"$f":"M63","v":0},"  xx  ",null,null,{"$f":"C63","v":0}]
[]
[null,null,null,null,null,{"$f":"A65","v":0},{"$f":"B65","v":0},":",{"$f":"M65","v":0},"  xx  ",null,null,{"$f":"C65","v":0}]
[]
[null,null,null,null,null,{"$f":"A67","v":0},{"$f":"B67","v":0},":",{"$f":"M67","v":0},"  xx  ",null,null,{"$f":"C67","v":0}]
[]
[null,null,null,null,null,{"$f":"A69","v":0},{"$f":"B69","v":0},":",{"$f":"M69","v":0},"  xx  ",null,null,{"$f":"C69","v":0}]
[]
[null,null,null,null,null,{"$f":"A71","v":0},{"$f":"B71","v":0},":",{"$f":"M71","v":0},"  xx  ",null,null,{"$f":"C71","v":0}]
[]
[null,null,null,null,null,{"$f":"A73","v":0},{"$f":"B73","v":0},":",{"$f":"M73","v":0},"  xx  ",null,null,{"$f":"C73","v":0}]
[]
[null,null,null,null,null,{"$f":"A75","v":0},{"$f":"B75","v":0},":",{"$f":"M75","v":0},"  xx  ",null,null,{"$f":"C75","v":0}]
[]
[null,null,null,null,null,{"$f":"A77","v":0},{"$f":"B77","v":0},":",{"$f":"M77","v":0},"  xx  ",null,null,{"$f":"C77","v":0}]
[]
[null,null,null,null,null,{"$f":"A79","v":0},{"$f":"B79","v":0},":",{"$f":"M79","v":0},"  xx  ",null,null,{"$f":"C79","v":0}]
[]
[null,null,null,null,null,{"$f":"A81","v":0},{"$f":"B81","v":0},":",{"$f":"M81","v":0},"  xx  ",null,null,{"$f":"C81","v":0}]
[]
[null,null,null,null,null,{"$f":"A83","v":0},{"$f":"B83","v":0},":",{"$f":"M83","v":0},"  xx  ",null,null,{"$f":"C83","v":0}]
[]
[null,null,null,null,null,{"$f":"A85","v":0},{"$f":"B85","v":0},":",{"$f":"M85","v":0},"  xx  ",null,null,{"$f":"C85","v":0}]
[]
[null,null,null,null,null,{"$f":"A87","v":0},{"$f":"B87","v":0},":",{"$f":"M87","v":0},"  xx  ",null,null,{"$f":"C87","v":0}]
[]
[null,null,null,null,null,{"$f":"A89","v":0},{"$f":"B89","v":0},":",{"$f":"M89","v":0},"  xx  ",null,null,{"$f":"C90","v":0}]

{"sheet":"Munka1","index":4,"n_rows":30,"n_cols":3,"rows_kept":30,"cut":false,"hidden":false,"merged":[[10,2,11,2],[0,2,1,2],[2,2,3,2],[4,2,5,2],[6,2,7,2],[8,2,9,2],[24,2,25,2],[26,2,27,2],[28,2,29,2],[12,2,13,2],[14,2,15,2],[16,2,17,2],[18,2,19,2],[20,2,21,2],[22,2,23,2]]}
["Pitlik Mátyás, Pitlik László, Pitlik Marcell","Érme-választás többrétegű optimalizálás keretében","(+)"]
["(MY-X team):","(Numismatics and similarity analysis)"]
["Pitlik Mátyás","A 2DM-játék tervezési (vak) nézete","(+)"]
["(MY-X team):","(Blind layer in the 2DM gamification frame)"]
["Pitlik László","MIAÚ aktivitások nyomai hazai PhD-folyamatokban","(+)"]
["(MY-X team):","(PhD-activities in Hungary with MIAU-references)"]
["Pitlik László, Pitlik Marcell, Pitlik László (jun), Pitlik Mátyás","Közlekedés- és környezetszimulátor működési helyességének tesztelése","(+)"]
["(MY-X team):","(Testing of robustness of a traffic/environment-simulator)"]
["Pitlik Mátyás, Pitlik László, Pitlik Marcell, Pitlik László (jun)","Valós kémia-feladat 2DM keretrendszerbe adaptálva","(+)"]
["(MY-X team):","(2DM-game about useful knowledge in chemistry)"]
["Pitlik László, Pitlik Marcell, Pitlik Mátyás","Kimutatásvarázslás-láncok és klasszikus programkódok összevetése","(+)"]
["(MY-X team):","(Comparing chained pivot-reports and classic sources codes)"]
["Pitlik László","Hasonlóságelemzés optimum hatásainak kiváltása COCO-STD-modellekkel","(+)"]
["(MY-X team):","(Optimum effects generated in COCO-STD-modells based on similarity analyses)"]
["Pitlik László, Pitlik Marcell, Pitlik Mátyás, Pitlik László (jun)","Titkosírás haladóknak III.","(+)"]
["(MY-X team):","(Cipher - exercises for advanced users - Part III)"]
["Pitlik László, Pitlik Marcell, Pitlik Mátyás, Pitlik László (jun)","Titkosírás haladóknak II.","(+)"]
["(MY-X team):","(Cipher - exercises for advanced users - Part II)"]
["Pitlik László, Pitlik Marcell, Pitlik Mátyás, Pitlik László (jun)","Titkosírás haladóknak I.","(+)"]
["(MY-X team):","(Cipher - exercises for advanced users - Part I)"]
["Pitlik László, Pitlik Marcell","SUDOKU-algoritmusok összevetése, avagy SOLVER vs. egyedi kód","(+)"]
["(MY-X team):","(Comparing of SUDOKU-algorithms or SOLVER vs. customized source code)"]
["Pitlik Mátyás, Pitlik Marcell, Pitlik László","Hasonlóságelemzés java-script-alapon","(+)"]
["(MY-X team):","(Similarity analyses based on java-script)"]
["Pitlik László, Pitlik Marcell","Hasonlóságelemzés macro-alapon","(+)"]
["(MY-X team):","(Similarity analyses based on Excel-macros)"]
["Pitlik László, Pitlik Marcell","Az Excel-macro tanítás/tanulás tapasztalatai","(+)"]
["(MY-X team):","(Experiences of teaching/learning of Excel-macros)"]
["Pitlik László, Pitlik Marcell","Típusproblémák Excel-alapú vállalati adatvagyonok kezelésekor","(+)"]
["(MY-X team):","(Typical problems in Excel-based data asset management)"]